fUST/lending_fUST_20240510
["ID","MTS","AMOUNT","RATE_DAILY","PERIOD"]
[326766855,1715337045690,-2000.0,0.00038708,2]
[326766857,1715337045699,-55555.0,0.00038708,5]
[326766859,1715337045708,-160.0,0.000388,19]
[326766861,1715337045717,-399962.26043396,0.00038809,30]
[326766863,1715337045731,-7348.25634769,0.00038809,30]
[326766868,1715337045772,-0.01497729,0.00038809,30]
[326770484,1715337338904,-3158.0,0.00016376,2]
[326770485,1715337374901,-157.500129,0.0001589,2]
[326770486,1715337374924,-157.500129,0.00016376,2]
[326770487,1715337374942,-9658.999742,0.00016376,2]
[326770488,1715337427146,11024.71479286,9.999e-05,2]
[326770489,1715337830013,288.53731085,0.000137,2]
[326770490,1715338009860,10000.0,0.0001501,2]
[326770491,1715338027096,8362.1,0.0001501,2]
[326770492,1715338185190,154.70605849,9.999e-05,2]
[326770522,1715338232363,-5274.02251764,0.00017585,2]
[326770524,1715338232374,-2610.16913716,0.00017585,2]
[326770526,1715338232383,-2593.72337385,0.00017586,2]
[326770528,1715338232392,-1966.12344812,0.000176,2]
[326770529,1715338232402,-7138.2999185,0.0001772,2]
[326770531,1715338232412,-520.5944527,0.00017779,2]
[326770533,1715338232421,-382.2096135,0.0001794,2]
[326770535,1715338232430,-894.51331095,0.00018499,2]
[326770537,1715338232439,-604.78532662,0.000185,2]
[326770539,1715338232448,-616.43202058,0.000189,2]
[326770541,1715338232457,-154.70605849,0.00019,2]
[326770543,1715338232467,-175.96056309,0.00019897,2]
[326770545,1715338232476,-490.15914299,0.00019897,2]
[326770547,1715338232485,-154.70605849,0.00019994,2]
[326770549,1715338232494,-300.22433725,0.00019995,2]
[326770551,1715338232503,-443.15710435,0.00019995,2]
[326770553,1715338232513,-417.79721706,0.00019995,2]
[326770555,1715338232522,-631.41143464,0.00019995,2]
[326770557,1715338232531,-154.90718629,0.00019996,2]
[326770559,1715338232541,-59315.98983434,0.00019996,2]
[326770561,1715338232550,-500.0,0.00019996,2]
[326770562,1715338232559,-500.0,0.00019996,2]
[326770564,1715338232568,-500.0,0.00019996,2]
[326770566,1715338232577,-500.0,0.00019996,2]
[326770568,1715338232587,-500.0,0.00019996,2]
[326770569,1715338232596,-500.0,0.00019996,2]
[326770571,1715338232605,-500.0,0.00019996,2]
[326770573,1715338232614,-500.0,0.00019996,2]
[326770574,1715338232623,-500.0,0.00019996,2]
[326770575,1715338232633,-500.0,0.00019996,2]
[326770576,1715338232642,-500.0,0.00019996,2]
[326770578,1715338232651,-500.0,0.00019996,2]
[326770579,1715338232660,-500.0,0.00019996,2]
[326770581,1715338232669,-500.0,0.00019996,2]
[326770582,1715338232678,-500.0,0.00019996,2]
[326770583,1715338232687,-500.0,0.00019996,2]
[326770584,1715338232696,-500.0,0.00019996,2]
[326770585,1715338232705,-500.0,0.00019996,2]
[326770586,1715338232715,-500.0,0.00019996,2]
[326770587,1715338232724,-500.0,0.00019996,2]
[326770588,1715338232733,-500.0,0.00019996,2]
[326770589,1715338232743,-500.0,0.00019996,2]
[326770590,1715338232752,-500.0,0.00019996,2]
[326770591,1715338232761,-500.0,0.00019996,2]
[326770592,1715338232769,-500.0,0.00019996,2]
[326770593,1715338232778,-500.0,0.00019996,2]
[326770594,1715338232787,-500.0,0.00019996,2]
[326770595,1715338232797,-500.0,0.00019996,2]
[326770596,1715338232807,-580.77377881,0.00019997,2]
[326770597,1715338232817,-156.18286297,0.00019998,2]
[326770598,1715338232826,-818.14050438,0.00019998,2]
[326770599,1715338232835,-619.01976516,0.00019998,2]
[326770600,1715338232845,-2106.79631056,0.00019998,2]
[326770601,1715338232854,-17043.68422043,0.00019998,2]
[326770629,1715338240475,-500.0,0.00019996,2]
[326770630,1715338240591,-500.0,0.00019996,2]
[326770631,1715338240600,-500.0,0.00019996,2]
[326770632,1715338240610,-500.0,0.00019996,2]
[326770633,1715338240619,-500.0,0.00019996,2]
[326770634,1715338240628,-573.5405621,0.00019996,2]
[326770635,1715338240637,-226.3492362,0.00019996,2]
[326770637,1715338241370,-273.6507638,0.00019996,2]
[326770638,1715338241380,-229.36112017,0.00019996,2]
[326770649,1715338243561,-270.63887983,0.00019996,2]
[326770651,1715338243570,-280.90798501,0.00019996,2]
[326770653,1715338243582,-219.09201499,0.00019996,2]
[326770654,1715338243591,-500.0,0.00019996,2]
[326770656,1715338243600,-341.14083354,0.00019996,2]
[326770658,1715338243609,-500.0,0.00019996,2]
[326770659,1715338243618,-244.09057447,0.00019996,2]
[326770660,1715338243630,-255.90942553,0.00019996,2]
[326770661,1715338243639,-500.0,0.00019996,2]
[326770662,1715338243648,-500.0,0.00019996,2]
[326770663,1715338243658,-500.0,0.00019996,2]
[326770664,1715338243669,-500.0,0.00019996,2]
[326770665,1715338243679,-500.0,0.00019996,2]
[326770666,1715338243688,-256.56190134,0.00019996,2]
[326770667,1715338243700,-243.43809866,0.00019996,2]
[326770668,1715338243710,-500.0,0.00019996,2]
[326770669,1715338243719,-500.0,0.00019996,2]
[326770670,1715338243730,-500.0,0.00019996,2]
[326770671,1715338243739,-500.0,0.00019996,2]
[326770672,1715338243749,-500.0,0.00019996,2]
[326770673,1715338243758,-500.0,0.00019996,2]
[326770674,1715338243768,-500.0,0.00019996,2]
[326770675,1715338243777,-500.0,0.00019996,2]
[326770676,1715338243788,-500.0,0.00019996,2]
[326770677,1715338243799,-500.0,0.00019996,2]
[326770678,1715338243808,-500.0,0.00019996,2]
[326770679,1715338243818,-500.0,0.00019996,2]
[326770680,1715338243828,-500.0,0.00019996,2]
[326770681,1715338243838,-500.0,0.00019996,2]
[326770682,1715338243847,-500.0,0.00019996,2]
[326770683,1715338243857,-500.0,0.00019996,2]
[326770684,1715338243867,-500.0,0.00019996,2]
[326770685,1715338243878,-500.0,0.00019996,2]
[326770686,1715338243888,-500.0,0.00019996,2]
[326770688,1715338243898,-500.0,0.00019996,2]
[326770690,1715338243907,-500.0,0.00019996,2]
[326770692,1715338243917,-500.0,0.00019996,2]
[326770693,1715338243926,-500.0,0.00019996,2]
[326770694,1715338243936,-500.0,0.00019996,2]
[326770695,1715338243945,-500.0,0.00019996,2]
[326770696,1715338243955,-500.0,0.00019996,2]
[326770697,1715338243965,-500.0,0.00019996,2]
[326770698,1715338243974,-500.0,0.00019996,2]
[326770699,1715338243983,-500.0,0.00019996,2]
[326770700,1715338243992,-500.0,0.00019996,2]
[326770701,1715338244001,-500.0,0.00019996,2]
[326770702,1715338244010,-250.0,0.00019996,2]
[326770703,1715338244019,-500.0,0.00019996,2]
[326770704,1715338244028,-13125.01950558,0.00019998,2]
[326770705,1715338244038,-9661.01558217,0.00019999,2]
[326770706,1715338244048,-35108.61032662,0.0002,2]
[326770783,1715338328310,904.53581118,9.999e-05,2]
[326770784,1715338344155,1002.17350792,9.999e-05,2]
[326770785,1715338411890,465.40109803,9.999e-05,2]
[326770786,1715338920703,288.53731085,0.000137,2]
[326770787,1715338948205,816.97434546,9.999e-05,2]
[326770852,1715339159416,904.53581118,9.999e-05,2]
[326770862,1715339274817,285.26297634,0.00015,2]
[326770864,1715339365157,-2104.72344677,0.00015846,2]
[326770865,1715339365179,-196.72361,0.0001589,2]
[326770866,1715339365200,-178.394654,0.0001589,2]
[326770867,1715339365221,-171.694154,0.0001589,2]
[326770868,1715339370188,51.09581228,0.00015845,2]
[326770889,1715339432537,-843.315,0.00015845,2]
[326770890,1715339432549,-5258.3048378,0.00015845,2]
[326770891,1715339432561,-1731.47600472,0.00015845,2]
[326770892,1715339432571,-604.78532662,0.000185,2]
[326770893,1715339432581,-601.69182518,0.000189,2]
[326770894,1715339432591,-224.5439,0.00019178,2]
[326770895,1715339432600,-166.394239,0.00019178,2]
[326770896,1715339432609,-175.96056307,0.000199,2]
[326770897,1715339432619,-2102.86497795,0.00019994,2]
[326770898,1715339432627,-830.9479584,0.00019995,2]
[326770899,1715339432637,-4667.56239241,0.00019996,2]
[326770900,1715339432646,-62525.03509015,0.00019996,2]
[326770901,1715339432656,-500.0,0.00019996,2]
[326770902,1715339432665,-500.0,0.00019996,2]
[326770903,1715339432675,-500.0,0.00019996,2]
[326770904,1715339432684,-500.0,0.00019996,2]
[326770905,1715339432693,-500.0,0.00019996,2]
[326770906,1715339432703,-500.0,0.00019996,2]
[326770907,1715339432712,-500.0,0.00019996,2]
[326770908,1715339432721,-500.0,0.00019996,2]
[326770909,1715339432730,-500.0,0.00019996,2]
[326770910,1715339432739,-500.0,0.00019996,2]
[326770911,1715339432749,-500.0,0.00019996,2]
[326770912,1715339432758,-500.0,0.00019996,2]
[326770913,1715339432767,-500.0,0.00019996,2]
[326770914,1715339432776,-500.0,0.00019996,2]
[326770915,1715339432784,-500.0,0.00019996,2]
[326770916,1715339432794,-500.0,0.00019996,2]
[326770917,1715339432803,-500.0,0.00019996,2]
[326770918,1715339432811,-284.11408336,0.00019996,2]
[326770919,1715339432820,-500.0,0.00019996,2]
[326770920,1715339432830,-500.0,0.00019996,2]
[326770921,1715339432839,-500.0,0.00019996,2]
[326770922,1715339432849,-500.0,0.00019996,2]
[326770923,1715339432858,-500.0,0.00019996,2]
[326770924,1715339432867,-500.0,0.00019996,2]
[326770925,1715339432876,-457.35405621,0.00019996,2]
[326770926,1715339432885,-500.0,0.00019996,2]
[326770927,1715339432895,-500.0,0.00019996,2]
[326770928,1715339432904,-500.0,0.00019996,2]
[326770929,1715339432913,-500.0,0.00019996,2]
[326770930,1715339432923,-500.0,0.00019996,2]
[326770931,1715339432932,-500.0,0.00019996,2]
[326770932,1715339432941,-500.0,0.00019996,2]
[326770933,1715339432950,-500.0,0.00019996,2]
[326770934,1715339432959,-500.0,0.00019996,2]
[326770935,1715339432968,-500.0,0.00019996,2]
[326770936,1715339432977,-500.0,0.00019996,2]
[326770937,1715339432986,-500.0,0.00019996,2]
[326770938,1715339432995,-500.0,0.00019996,2]
[326770940,1715339433004,-500.0,0.00019996,2]
[326770942,1715339433013,-500.0,0.00019996,2]
[326770944,1715339433023,-500.0,0.00019996,2]
[326770946,1715339433032,-500.0,0.00019996,2]
[326770947,1715339433042,-849.61040854,0.00019997,2]
[326770948,1715339433051,-59315.98983434,0.00019997,2]
[326770949,1715339433061,-301.45988302,0.00019998,2]
[326770950,1715339433071,-1679.27061659,0.00019998,2]
[326770951,1715339433080,-8602.21054839,0.00019998,2]
[326770952,1715339433089,-288.37666641,0.00019998,2]
[326770953,1715339433100,-816.51300166,0.00019998,2]
[326770954,1715339433109,-154.70605849,0.00019998,2]
[326770955,1715339433119,-329.81606313,0.00019998,2]
[326770956,1715339433128,-894.51331095,0.00019999,2]
[326770957,1715339433137,-1798.99600237,0.0002,2]
[326770974,1715339438689,-500.0,0.00019996,2]
[326770975,1715339438699,-500.0,0.00019996,2]
[326770976,1715339438709,-500.0,0.00019996,2]
[326770977,1715339438719,-500.0,0.00019996,2]
[326770978,1715339438730,-500.0,0.00019996,2]
[326770979,1715339438739,-500.0,0.00019996,2]
[326770980,1715339438749,-500.0,0.00019996,2]
[326770981,1715339438758,-500.0,0.00019996,2]
[326770982,1715339438768,-500.0,0.00019996,2]
[326770983,1715339438779,-500.0,0.00019996,2]
[326770984,1715339438788,-293.07441043,0.00019996,2]
[326770985,1715339438798,-2373.3068174,0.0002,2]
[326771037,1715339443769,-3151.05,0.0002,2]
[326771038,1715339443780,-25089.92055201,0.0002,2]
[326771039,1715339443790,-380.05955451,0.0002,2]
[326771041,1715339443799,-10615.15949594,0.0002,2]
[326771043,1715339443808,-960.35388075,0.000205,5]
[326771298,1715339830947,330.512254,9.999e-05,2]
[326771299,1715340291128,284.55118921,9.999e-05,2]
[326771300,1715340549211,-1354.01618233,0.00015886,2]
[326771338,1715340632559,-7884.1916548,0.00015883,2]
[326771340,1715340632568,-3057.36000381,0.00015884,2]
[326771342,1715340632578,-1239.70719152,0.00015886,2]
[326771344,1715340632587,-164.118529,0.0001589,2]
[326771347,1715340632597,-157.500129,0.0001589,2]
[326771349,1715340632606,-583.44842813,0.00017997,2]
[326771351,1715340632616,-182.779338,0.00018211,2]
[326771353,1715340632625,-604.78532662,0.000185,2]
[326771355,1715340632635,-401.12788345,0.000189,2]
[326771357,1715340632644,-175.96056307,0.000199,2]
[326771359,1715340632654,-330.27321847,0.00019997,2]
[326771361,1715340632663,-155.14059389,0.00019997,2]
[326771363,1715340632672,-242.15918849,0.00019997,2]
[326771365,1715340632682,-718.7949124,0.00019997,2]
[326771367,1715340632692,-498.01903338,0.00019997,2]
[326771369,1715340632701,-1018.24453287,0.00019997,2]
[326771371,1715340632712,-524.11454042,0.00019997,2]
[326771373,1715340632721,-273.81944562,0.00019997,2]
[326771375,1715340632731,-1716.72807354,0.00019997,2]
[326771377,1715340632741,-194.1642929,0.00019998,2]
[326771379,1715340632750,-3457.70192986,0.00019998,2]
[326771381,1715340632760,-22674.82598506,0.00019999,2]
[326771580,1715340639131,-273.21428943,0.00019999,2]
[326771657,1715340644673,-182.779338,0.00018463,2]
[326771659,1715340644684,-13410.33269891,0.00019999,2]
[326771661,1715340644694,-500.0,0.00019999,2]
[326771663,1715340644704,-161.92822847,0.00019999,2]
[326771664,1715340644714,-500.0,0.00019999,2]
[326771665,1715340644725,-531.56823148,0.00019999,2]
[326771666,1715340644735,-500.0,0.00019999,2]
[326771667,1715340644745,-500.0,0.00019999,2]
[326771669,1715340644755,-579.30744104,0.00019999,2]
[326771671,1715340644765,-500.0,0.00019999,2]
[326771673,1715340644775,-56151.21425291,0.0002,2]
[326771675,1715340644785,-348.74853151,0.0002,2]
[326771677,1715340644796,-1346.28411126,0.000205,5]
[326771679,1715340644805,-154.84423191,0.0002091,2]
[326771681,1715340644815,-744.57696609,0.0002091,2]
[326771683,1715340644825,-3920.18410558,0.00020911,2]
[326771685,1715340644834,-309.38126526,0.00020911,2]
[326771687,1715340644843,-3966.74516132,0.00021,2]
[326771689,1715340644853,-165.466199,0.00021918,2]
[326771691,1715340644862,-166.666666,0.00021918,2]
[326771693,1715340644872,-244.79332187,0.00022,2]
[326771695,1715340644882,-3000.0,0.00022,2]
[326771697,1715340644891,-166.666666,0.00022559,2]
[326771698,1715340644900,-714.97924015,0.00023,2]
[326771700,1715340644911,-166.666666,0.000232,2]
[326771702,1715340644920,-166.666666,0.00023841,2]
[326771704,1715340644930,-401.12788345,0.000239,2]
[326771706,1715340644940,-166.666666,0.00024482,2]
[326771707,1715340644950,-400.10978683,0.00025,2]
[326771708,1715340644960,-256.54434954,0.00025,2]
[326771709,1715340644971,-154.70605849,0.00025,2]
[326771710,1715340644980,-186.85286601,0.00027,2]
[326771711,1715340644990,-1000.0,0.00027397,2]
[326771712,1715340645000,-339.60266127,0.00028,2]
[326771713,1715340645010,-7951.92773563,0.00028,2]
[326771714,1715340645020,-401.12788345,0.000289,2]
[326771715,1715340645029,-713.0309286,0.00029107,2]
[326771716,1715340645039,-150.71364408,0.00029672,2]
[326771717,1715340645049,-2870.66,0.0002995,3]
[326771718,1715340645059,-2958.84,0.0002996,3]
[326771719,1715340645068,-1714.65589108,0.0003,10]
[326771860,1715341832734,-344.05485939,0.00015882,2]
[326771894,1715341840314,157.19307999,9.999e-05,2]
[326771922,1715341841989,-2593.72337385,0.00015881,2]
[326771924,1715341842001,-7540.13679541,0.00015882,2]
[326771925,1715341842011,-160.413977,0.0001589,2]
[326771926,1715341842021,-196.72361,0.0001589,2]
[326771927,1715341842035,-900.96902525,0.00019866,2]
[326771928,1715341842044,-307.52913018,0.00019998,2]
[326771929,1715341842054,-3068.51153378,0.00020912,2]
[326771930,1715341842064,-8829.81200994,0.00020912,2]
[326771941,1715341843784,-553.87960618,0.00020912,2]
[326771942,1715341843793,-380.05955451,0.00020912,2]
[326771943,1715341843803,-190.028433,0.00020963,2]
[326771944,1715341843812,-150.0,0.00021779,2]
[326771945,1715341843822,-225.0,0.00021918,2]
[326771946,1715341843831,-159.42165086,0.00022,2]
[326771947,1715341843841,-4753.95815841,0.00022,2]
[326771949,1715341843853,-475.75729824,0.00022,2]
[326771951,1715341843863,-502.44782602,0.000222,2]
[326771952,1715341843872,-754.79516622,0.000223,2]
[326771953,1715341843882,-713.0309286,0.000225,2]
[326771954,1715341843892,-330.46878092,0.00023,2]
[326771955,1715341843951,-0.00846004,0.00023,2]
[326771956,1715341843967,-384.50199919,0.00023,2]
[326771957,1715341843977,-198.443432,0.00023942,2]
[326771958,1715341843986,-154.70605849,0.00025,2]
[326771959,1715341843996,-400.10978683,0.00025,2]
[326771960,1715341844005,-150.0,0.00026954,3]
[326771961,1715341844014,-186.85286601,0.00027,2]
[326771962,1715341844024,-154.16851109,0.00027569,2]
[326771963,1715341844033,-221.20105551,0.00028,2]
[326771964,1715341844042,-157.91074721,0.00028188,3]
[326771965,1715341844052,-150.69860279,0.00029886,2]
[326771966,1715341844061,-175.96056307,0.000299,2]
[326771967,1715341844071,-1638.0462997,0.0003,10]
[326771968,1715341844080,-364.18525495,0.0003,2]
[326771969,1715341844090,-757.7563862,0.0003,4]
[326771970,1715341844099,-3966.74516132,0.0003,4]
[326771971,1715341844109,-5192.1554711,0.0003,7]
[326771972,1715341844118,-3000.0,0.0003,2]
[326771973,1715341844128,-670.3596754,0.0003,4]
[326771974,1715341844137,-2023.6121214,0.0003,2]
[326771975,1715341844147,-301.39720559,0.00030389,4]
[326771976,1715341844157,-502.44782596,0.00030443,2]
[326771977,1715341844166,-602.79441118,0.00030899,7]
[326771978,1715341844175,-157.500129,0.00031027,2]
[326771979,1715341844185,-166.6605988,0.00031419,4]
[326771980,1715341844194,-1205.58882236,0.00031682,30]
[326771981,1715341844204,-511.54151708,0.00032,4]
[326771982,1715341844213,-493.0,0.00033733,2]
[326771983,1715341844222,-154.70605849,0.00034,2]
[326771984,1715341844232,-467.00386112,0.00034,4]
[326771985,1715341844241,-1143.84101833,0.00034865,30]
[326771986,1715341844250,-7358.30466658,0.000349,2]
[326771987,1715341844261,-189.862776,0.00035616,120]
[326771988,1715341844270,-154.86030484,0.00036802,4]
[326771989,1715341844280,-153.0,0.00037534,2]
[326771990,1715341844289,-153.0,0.00037534,2]
[326771991,1715341844298,-153.0,0.00037534,2]
[326771992,1715341844307,-153.0,0.00037534,2]
[326771993,1715341844317,-153.0,0.00037534,2]
[326771994,1715341844326,-10597.08238581,0.00038,2]
[326771995,1715341844335,-1000.0,0.00038,38]
[326771996,1715341844344,-231.03416012,0.00038374,15]
[326771997,1715341844354,-2411.17764471,0.00038375,120]
[326771998,1715341844363,-502.44782596,0.00038686,2]
[326771999,1715341844372,-2462.4,0.00038731,3]
[326772000,1715341844382,-2052.0,0.00038731,3]
[326772001,1715341844391,-2954.88,0.00038732,3]
[326772002,1715341844400,-500.0,0.00038738,10]
[326772003,1715341844410,-500.0,0.00038738,10]
[326772004,1715341844420,-496.0525076,0.00038739,4]
[326772005,1715341844429,-320.68043693,0.00038739,4]
[326772006,1715341844438,-1354.00120504,0.00038739,4]
[326772007,1715341844448,-500.0,0.0003874,10]
[326772008,1715341844569,-3481.01106768,0.00038741,15]
[326772009,1715341847612,-3059.82715,0.00038741,15]
[326772017,1715342064170,584.46537033,9.999e-05,2]
[326772018,1715342524515,154.70605849,9.999e-05,2]
[326772019,1715342526379,12569.35966238,9.999e-05,2]
[326772020,1715342544315,12458.96151099,9.999e-05,2]
[326772021,1715342611376,364.39759139,9.999e-05,2]
[326772022,1715342630597,364.39759139,9.999e-05,2]
[326772023,1715342649362,355.19806788,9.999e-05,2]
[326772031,1715343031784,-159.680835,0.0001589,2]
[326772032,1715343031794,-164.597142,0.0001589,2]
[326772033,1715343031803,-156.77709324,0.00017697,2]
[326772034,1715343031812,-2636.98317166,0.00017797,2]
[326772035,1715343031824,-5247.20848314,0.00017797,2]
[326772036,1715343031835,-2259.4949604,0.00017798,2]
[326772037,1715343031844,-604.78532662,0.00018608,2]
[326772038,1715343031853,-154.70605849,0.00018609,2]
[326772039,1715343031862,-24900.0,0.0001861,2]
[326772041,1715343031871,-507.12115289,0.000188,2]
[326772043,1715343031880,-150.0,0.000189,2]
[326772045,1715343031889,-190.028433,0.00019178,2]
[326772047,1715343031898,-166.75652513,0.00019327,2]
[326772048,1715343031907,-3000.0,0.00019429,2]
[326772049,1715343031916,-408.68361487,0.0002,2]
[326772050,1715343031925,-2228.42068693,0.0002,2]
[326772051,1715343031934,-434.12326,0.00020503,2]
[326772052,1715343031943,-151.84504479,0.00020812,2]
[326772053,1715343031953,-619.01976516,0.00020912,2]
[326772054,1715343031962,-2106.79631056,0.00020912,2]
[326772055,1715343031971,-580.77377881,0.00020912,2]
[326772057,1715343031980,-818.14050438,0.00020913,2]
[326772059,1715343031990,-17043.68422043,0.00020913,2]
[326772061,1715343031999,-150.0,0.00021786,2]
[326772063,1715343032009,-165.4662005,0.00021918,2]
[326772065,1715343032019,-166.666666,0.00021918,2]
[326772067,1715343032028,-714.97924015,0.00023,2]
[326772069,1715343032037,-166.666666,0.000232,2]
[326772071,1715343032047,-150.0,0.000239,2]
[326772073,1715343032056,-166.666666,0.00024482,2]
[326772075,1715343032065,-644.52251717,0.00025,2]
[326772076,1715343032074,-400.10978683,0.00025,2]
[326772079,1715343032083,-154.16851109,0.00025178,2]
[326772080,1715343032093,-507.12115288,0.00026946,2]
[326772082,1715343032102,-150.0,0.0002696,3]
[326772084,1715343032111,-186.85286601,0.00028586,2]
[326772087,1715343032121,-154.16851109,0.00028587,2]
[326772089,1715343032130,-713.0309286,0.00029056,2]
[326772091,1715343032139,-1125.14,0.00029999,2]
[326772092,1715343032149,-1000.0,0.0003,2]
[326772094,1715343032158,-434.12326,0.00030754,2]
[326772096,1715343032167,-150.0,0.00032134,7]
[326772098,1715343032176,-1565.82545843,0.00034489,4]
[326772100,1715343032185,-770.55057017,0.00034858,30]
[326772102,1715343032195,-507.12115288,0.00035093,2]
[326772104,1715343032205,-189.862779,0.00035616,120]
[326772106,1715343032215,-159.680835,0.00036073,2]
[326772108,1715343032224,-184.22920508,0.00036751,3]
[326772109,1715343032243,-150.0,0.00037307,7]
[326772110,1715343032253,-1143.5384036,0.00037879,3]
[326772111,1715343032276,-1821.2515964,0.00037879,3]
[326772112,1715343032285,-2514.36299495,0.00037879,3]
[326772113,1715343032296,-272.77700505,0.00037879,3]
[326772114,1715343032305,-1463.45636231,0.00037889,15]
[326772115,1715343032316,-361.8150045,0.00037889,15]
[326772125,1715343037757,-500.0,0.00037878,15]
[326772127,1715343037767,-500.0,0.00037878,15]
[326772128,1715343037776,-500.0,0.00037878,15]
[326772130,1715343037785,-296.92958069,0.00037878,15]
[326772131,1715343037798,-3.07041931,0.00037878,15]
[326772132,1715343037807,-723.32851884,0.00037879,3]
[326772133,1715343037823,-1599.29148116,0.00037879,3]
[326772134,1715343037833,-6216.22756104,0.00037889,15]
[326772135,1715343037845,-565.90470413,0.00037889,15]
[326772136,1715343037857,-1043.43213969,0.00037889,15]
[326772137,1715343037866,-393.57149545,0.00037899,15]
[326772138,1715343037877,-237.23128737,0.00037899,15]
[326772139,1715343037886,-473.49963335,0.000379,15]
[326772140,1715343037898,-535.81281327,0.000379,15]
[326772141,1715343037910,-9544.50823362,0.000379,15]
[326772142,1715343037919,-2000.0,0.000379,2]
[326772143,1715343037928,-826.63955257,0.000379,5]
[326772144,1715343037939,-2586.2253657,0.000379,5]
[326772145,1715343037950,-718.0,0.000379,5]
[326772146,1715343037967,-23118.1424415,0.000379,5]
[326772147,1715343037982,-5688.27772219,0.000379,5]
[326772158,1715343040048,-335.914,0.000379,5]
[326772187,1715343043145,-500.0,0.00037878,15]
[326772188,1715343043155,-500.0,0.00037878,15]
[326772189,1715343043164,-500.0,0.00037878,15]
[326772190,1715343043174,-500.0,0.00037878,15]
[326772191,1715343043183,-500.0,0.00037878,15]
[326772192,1715343043193,-500.0,0.00037878,15]
[326772193,1715343043202,-171.75,0.00037878,15]
[326772194,1715343043213,-328.25,0.00037878,15]
[326772195,1715343043223,-500.0,0.00037878,15]
[326772196,1715343043233,-500.0,0.00037878,15]
[326772197,1715343043244,-500.0,0.00037878,15]
[326772198,1715343043253,-500.0,0.00037878,15]
[326772199,1715343043263,-500.0,0.00037878,15]
[326772200,1715343043273,-500.0,0.00037878,15]
[326772201,1715343043282,-500.0,0.00037878,15]
[326772202,1715343043291,-11911.26589166,0.000379,5]
[326772203,1715343043303,-10370.53502638,0.000379,5]
[326772204,1715343043312,-151.84504478,0.000379,2]
[326772205,1715343043321,-224.689473,0.000379,2]
[326772206,1715343043331,-545301.75481285,0.00038,30]
[326772219,1715343045847,-604.78532662,0.00037899,4]
[326772220,1715343045857,-823.87364627,0.0003799,3]
[326772226,1715343547828,5406.15736367,9.999e-05,2]
[326772237,1715343625289,16127.46267544,9.999e-05,2]
[326772238,1715343639293,16127.46267544,9.999e-05,2]
[326772239,1715343657287,3422.68617109,9.999e-05,2]
[326772240,1715343720212,288.53731085,0.000137,2]
[326772241,1715343839136,154.70605849,0.0001,2]
[326772242,1715344029319,816.97434546,9.999e-05,2]
[326772243,1715344071148,160.89768766,9.999e-05,2]
[326772244,1715344078565,1245.04426602,9.999e-05,2]
[326772245,1715344081994,155.46523061,9.999e-05,2]
[326772246,1715344107480,465.40109803,9.999e-05,2]
[326772247,1715344129044,584.46537033,9.999e-05,2]
[326772248,1715344136522,581.7424777,9.999e-05,2]
[326772322,1715344232066,-189.33595798,0.0001579,2]
[326772325,1715344232075,-157.500129,0.0001589,2]
[326772328,1715344232085,-157.500129,0.0001589,2]
[326772331,1715344232094,-166.75652513,0.000179,2]
[326772333,1715344232103,-894.51331095,0.00018,2]
[326772334,1715344232112,-156.77709323,0.00018384,2]
[326772337,1715344232122,-7884.1916548,0.00018482,2]
[326772339,1715344232131,-3589.12040323,0.00018483,2]
[326772341,1715344232140,-171.7760826,0.00019178,2]
[326772343,1715344232150,-26905.94284497,0.00020913,2]
[326772345,1715344232160,-316.95072055,0.00022486,2]
[326772347,1715344232169,-322.4546819,0.00022586,2]
[326772349,1715344232179,-714.97924015,0.00024382,2]
[326772351,1715344232188,-380.0,0.00024658,2]